bitfinex-derivatives/quotes_ETHF0:USTF0_20250604
["timestamp","ask_amount","ask_price","bid_price","bid_amount"]
[1749049712147,0.75758,2638.8,2638.7,0.75759]
[1749049712349,0.75758,2638.8,2638.6,41.5576]
[1749049712756,6.99453193,2638.9,2638.7,0.75759]
[1749049712958,0.75757,2638.8,2638.7,0.75757]
[1749049713457,6.99452193,2638.9,2638.6,40.8]
[1749049713751,5.78122193,2638.9,2638.8,0.75756]
[1749049713957,5.78122193,2638.9,2638.7,0.75757]
[1749049714161,0.75756,2638.8,2638.7,0.75757]
[1749049714353,5.78123193,2638.9,2638.7,0.75757]
[1749049714750,0.75756,2638.8,2638.7,0.75757]
[1749049715153,0.75756,2638.8,2638.6,40.8]
[1749049715355,0.75757,2638.8,2638.6,40.8]
[1749049715560,0.75757,2638.8,2638.7,0.75758]
[1749049715861,5.78122193,2638.9,2638.8,0.75756]
[1749049716059,5.78122193,2638.9,2638.6,40.8]
[1749049716060,5.78122193,2638.9,2638.7,0.75757]
[1749049716460,5.78222193,2638.9,2638.7,0.75759]
[1749049716661,0.75756,2638.8,2638.7,0.75759]
[1749049717360,0.75756,2638.8,2638.6,40.8]
[1749049717361,0.75759,2638.7,2638.6,41.55759]
[1749049717858,0.75759,2638.7,2638.6,0.75762]
[1749049718061,0.75759,2638.7,2638.4,0.832]
[1749049718062,0.75773,2638.3,2638.2,3.2078]
[1749049719054,4.1076,2638.4,2638.0,40.8]
[1749049719260,0.75776,2638.1,2638.0,40.8]
[1749049719457,0.75782,2637.9,2637.8,3.2078]
[1749049719661,5.02,2638.1,2637.8,3.96562]
[1749049719968,0.75782,2637.9,2637.8,3.96562]
[1749049720661,5.7778,2638.0,2637.9,0.75782]
[1749049721067,5.02,2638.0,2637.8,44.76563]
[1749049721363,1.2433,2638.1,2637.8,44.76563]
[1749049721364,0.75777,2638.1,2637.9,0.7578]
[1749049721563,5.77779,2638.0,2637.9,0.7578]
[1749049721870,0.75782,2637.9,2637.8,3.2078]
[1749049722062,0.75782,2637.9,2637.6,0.8227]
[1749049722063,0.75788,2637.7,2637.6,0.8227]
[1749049722265,0.75788,2637.7,2637.6,41.6227]
[1749049722566,0.8281,2637.9,2637.3,3.2078]
[1749049722767,0.75794,2637.5,2637.4,0.75795]
[1749049723159,0.75794,2637.5,2637.4,40.8]
[1749049723359,5.011,2637.6,2637.5,0.75793]
[1749049723561,5.8391,2637.9,2637.8,0.75785]
[1749049723867,0.75788,2637.7,2637.5,2.02481]
[1749049724070,0.75793,2637.5,2637.4,40.8]
[1749049724370,7.1342,2637.9,2637.4,40.8]
[1749049724563,0.75788,2637.7,2637.5,0.75791]
[1749049724765,5.011,2637.6,2637.5,0.75792]
[1749049725472,5.7689,2637.6,2637.5,0.75792]
[1749049726068,5.012,2637.6,2637.4,40.8]
[1749049726367,6.59793,2637.9,2637.8,0.75785]
[1749049726567,0.75782,2637.9,2637.6,3.2078]
[1749049726764,8.2198,2638.1,2637.6,3.2078]
[1749049726965,0.75784,2637.9,2637.8,0.75784]
[1749049727164,0.75787,2637.7,2637.6,3.2078]
[1749049728370,0.75787,2637.7,2637.6,3.9657]
[1749049729070,5.012,2637.8,2637.7,0.75787]
[1749049729272,5.76984,2637.8,2637.7,0.75787]
[1749049730464,0.75787,2637.7,2637.6,3.96567]
[1749049730974,0.75793,2637.5,2637.4,40.8]
[1749049731265,6.90667,2637.8,2637.3,3.2078]
[1749049731266,0.75796,2637.4,2637.3,3.2078]
[1749049731469,0.75796,2637.4,2637.3,3.96579]
[1749049731866,0.8305,2637.6,2637.3,3.2078]
[1749049732074,1.58842,2637.6,2637.5,0.75793]
[1749049732268,0.8305,2637.6,2637.5,0.75793]
[1749049732472,6.6004,2637.6,2637.5,0.75793]
[1749049732775,0.75794,2637.5,2637.4,0.75794]
[1749049733270,0.8305,2637.6,2637.5,0.75793]
[1749049733475,5.012,2637.7,2637.6,0.7579]
[1749049733675,5.012,2637.7,2637.6,3.9657]
[1749049734576,5.012,2638.0,2637.7,1.89469]
[1749049734767,5.012,2638.0,2637.9,0.75782]
[1749049735071,5.76975,2638.2,2638.1,0.75776]
[1749049735379,1.63197,2638.4,2638.3,0.7577]
[1749049735870,3.2078,2638.8,2638.3,1.89421]
[1749049736073,0.7576,2638.7,2638.6,0.75759]
[1749049736275,0.75764,2638.6,2638.5,0.75763]
[1749049736472,3.96537,2638.8,2638.7,0.75759]
[1749049736671,0.75757,2638.8,2638.7,0.75759]
[1749049737777,0.7576,2638.7,2638.6,0.75759]
[1749049737982,1.2769,2638.8,2638.5,3.2078]
[1749049738179,0.75762,2638.6,2638.5,3.96543]
[1749049738382,0.75761,2638.7,2638.6,0.75761]
[1749049738582,0.75761,2638.7,2638.6,41.55761]
[1749049738785,0.75761,2638.7,2638.6,40.8]
[1749049740381,5.01768193,2638.9,2638.6,40.8]
[1749049740686,5.77523193,2638.9,2638.7,0.75759]
[1749049741174,0.75759,2638.7,2638.6,40.8]
[1749049741370,0.7577,2638.4,2637.9,2.78924]
[1749049741577,5.012,2638.7,2638.2,1.89431]
[1749049741875,0.75766,2638.5,2638.4,0.75767]
[1749049742286,6.2404,2638.7,2638.3,40.8]
[1749049742287,0.75763,2638.6,2638.5,0.75763]
[1749049742491,0.75762,2638.6,2638.4,0.75765]
[1749049742689,0.75765,2638.5,2638.4,0.75765]
[1749049742881,0.7576,2638.7,2638.6,0.75762]
[1749049743181,5.01768193,2638.9,2638.8,0.75756]
[1749049743682,3.2078,2639.3,2639.2,0.75744]
[1749049743875,3.96522,2639.3,2639.2,0.75744]
[1749049744078,3.2078,2639.3,2639.2,0.75744]
[1749049744779,0.00568193,2639.5,2639.0,4.11478193]
[1749049744988,0.00568193,2639.5,2639.4,0.75739]
[1749049745177,0.00568193,2639.5,2639.0,5.35178193]
[1749049745378,0.00568193,2639.5,2639.4,0.75739]
[1749049746286,0.00568193,2639.5,2639.4,1.97509]
[1749049747582,0.00568193,2639.5,2639.4,42.77509]
[1749049748383,0.76304193,2639.5,2639.4,40.8]
[1749049748584,0.00568193,2639.5,2639.4,41.55739]
[1749049748882,0.76304193,2639.5,2639.4,41.55739]
[1749049749088,0.76304193,2639.5,2639.4,40.8]
[1749049749293,0.00568193,2639.5,2639.4,41.55739]
[1749049753989,0.00568193,2639.5,2639.4,42.86589]
[1749049754591,0.00568193,2639.5,2639.4,43.14939717]
[1749049754789,1.89277,2640.4,2640.1,1.89296]
[1749049754790,5.001,2640.3,2640.1,1.89296]
[1749049755095,5.001,2640.3,2640.2,0.75716]
[1749049755594,5.001,2640.3,2639.9,3.2078]
[1749049755892,1.2322,2640.2,2640.1,0.75719]
[1749049756196,1.2322,2640.2,2640.1,41.55719]
[1749049756587,0.75723,2640.0,2639.8,3.96506]
[1749049756785,2.4319,2640.1,2639.8,0.75726]
[1749049756984,2.4319,2640.1,2639.9,0.75724]
[1749049756985,1.2322,2640.0,2639.9,0.75724]
[1749049757192,5.8578,2640.1,2640.0,0.75721]
[1749049757393,0.8568,2640.1,2640.0,0.75721]
[1749049757896,0.8568,2640.1,2640.0,41.55721]
[1749049758990,2.095,2640.1,2640.0,41.55721]
[1749049759488,0.00568193,2640.4,2640.3,0.75713]
[1749049759789,5.00668193,2640.4,2640.3,0.75713]
[1749049759991,0.00568193,2640.4,2640.3,0.75713]
[1749049760387,0.00568193,2640.4,2640.3,1.62133]
[1749049760588,0.00568193,2640.4,2640.2,3.96495]
[1749049760890,5.001,2640.3,2639.3,3.2078]
[1749049761091,0.75738,2639.5,2639.3,3.2078]
[1749049761291,5.0,2639.7,2639.4,40.8]
[1749049761593,7.98,2639.7,2639.6,0.75733]
[1749049761788,7.98,2639.7,2639.4,40.8]
[1749049761789,7.98,2639.7,2639.4,41.55737]
[1749049761989,8.73731,2639.7,2639.4,41.55737]
[1749049762194,0.75723,2640.0,2639.7,0.75728]
[1749049762384,1.7564,2639.9,2639.7,0.75728]
[1749049762589,1.2236,2639.8,2639.7,0.75728]
[1749049762883,1.2236,2639.8,2639.6,0.75731]
[1749049763085,1.2236,2639.8,2639.4,40.8]
[1749049763289,1.2236,2639.8,2639.7,0.7573]
[1749049763799,1.2236,2639.8,2639.6,0.75731]
[1749049763995,1.2236,2639.8,2639.4,40.8]
[1749049764188,1.2236,2639.8,2639.7,0.7573]
[1749049764394,1.2236,2639.8,2639.4,40.8]
[1749049764395,1.98087,2639.8,2639.6,0.75732]
[1749049764594,5.0,2639.7,2639.6,0.75732]
[1749049764796,6.3077,2639.7,2639.6,0.75732]
[1749049766396,6.3077,2639.7,2639.5,0.75734]
[1749049766693,6.3077,2639.7,2639.6,0.75733]
[1749049766893,7.06501,2639.7,2639.5,0.75736]
[1749049767101,6.3077,2639.7,2639.5,0.75736]
[1749049767599,6.3077,2639.7,2639.6,0.75733]
[1749049767901,0.75737,2639.5,2639.3,3.96522]
[1749049768097,1.3028,2639.4,2639.3,3.2078]
[1749049768401,1.3028,2639.4,2639.3,3.96522]
[1749049768595,2.06019,2639.4,2639.3,3.2078]
[1749049769401,1.3028,2639.4,2639.3,3.2078]
[1749049769795,1.3028,2639.4,2639.1,41.55746]
[1749049770109,0.75747,2639.1,2638.9,3.2078]
[1749049770404,0.75747,2639.1,2638.2,5.0]
[1749049770405,0.75747,2639.1,2638.4,3.2078]
[1749049770600,5.75747,2639.1,2638.4,44.0078]
[1749049770896,7.05887,2639.1,2638.5,0.75763]
[1749049771101,7.05887,2639.1,2638.5,0.75764]
[1749049771294,7.05887,2639.1,2638.4,44.0078]
[1749049771295,7.05887,2639.1,2638.6,0.75762]
[1749049771501,7.05887,2639.1,2638.5,0.75763]
[1749049771806,0.75756,2638.9,2638.6,0.75761]
[1749049771999,6.3014,2638.8,2638.6,0.75761]
[1749049772198,3.2078,2639.2,2638.4,44.0078]
[1749049772399,6.6163,2639.1,2638.8,0.75756]
[1749049772604,1.3014,2639.0,2638.8,0.75756]
[1749049773102,5.8588,2639.1,2638.9,0.75753]
[1749049773307,6.61628,2639.1,2638.8,0.75754]
[1749049773606,7.92818,2639.1,2638.8,0.75756]
[1749049773794,7.1707,2639.1,2638.9,0.75753]
[1749049773999,5.00668193,2639.2,2639.1,0.75748]
[1749049774309,5.00668193,2639.2,2639.0,0.75749]
[1749049774607,5.00668193,2639.2,2639.1,0.75748]
[1749049774796,0.8915,2639.6,2639.5,0.75736]
[1749049774995,0.8915,2639.6,2639.4,0.75737]
[1749049775301,0.8915,2639.6,2639.5,0.75736]
[1749049775503,0.8915,2639.6,2639.4,0.75739]
[1749049775706,1.64884,2639.6,2639.4,0.75739]
[1749049776106,0.75737,2639.5,2639.3,3.9652]
[1749049776408,0.75739,2639.4,2639.3,3.2078]
[1749049776604,0.75739,2639.4,2639.3,3.96522]
[1749049776801,0.75738,2639.5,2639.4,0.75739]
[1749049777200,1.64885,2639.6,2639.4,0.75739]
[1749049777507,1.64885,2639.6,2639.4,0.75737]
[1749049777706,0.75739,2639.4,2639.3,3.9652]
[1749049778209,0.8915,2639.6,2639.3,3.9652]
[1749049778507,0.75736,2639.5,2639.4,41.55739]
[1749049778715,0.75735,2639.6,2639.5,0.75736]
[1749049779307,0.75735,2639.6,2639.4,41.55737]
[1749049779708,0.75736,2639.5,2639.4,41.55739]
[1749049779918,0.75735,2639.6,2639.4,41.55739]
[1749049780102,0.75735,2639.6,2639.5,0.75736]
[1749049780408,0.75735,2639.6,2639.4,40.8]
[1749049780712,0.75735,2639.6,2639.4,41.55737]
[1749049780911,0.75736,2639.5,2639.4,41.55737]
[1749049781108,0.75736,2639.5,2639.4,41.55739]
[1749049781305,0.75736,2639.5,2639.4,40.8]
[1749049781505,5.832,2639.7,2639.4,40.8]
[1749049781704,5.001,2639.7,2639.6,0.75734]
[1749049781901,0.88208193,2639.8,2639.7,0.75731]
[1749049782212,5.88308193,2639.8,2639.7,0.75731]
[1749049782913,0.00568193,2639.8,2639.7,0.75731]
[1749049783412,6.5979,2640.8,2640.6,0.75703]
[1749049783610,6.5979,2640.8,2640.7,0.75702]
[1749049783806,7.1418,2640.8,2640.3,1.89285]
[1749049784012,7.1418,2640.8,2640.6,0.75703]
[1749049784204,7.8988,2640.8,2640.6,0.75705]
[1749049784407,7.89881,2640.8,2640.4,0.00568193]
[1749049784617,0.75702,2640.7,2640.4,0.76276193]
[1749049784912,1.3009,2640.6,2640.5,0.75708]
[1749049787717,4.991,2640.7,2640.6,0.75705]
[1749049788714,4.991,2640.7,2640.6,0.75706]
[1749049789309,4.991,2640.7,2640.4,0.00568193]
[1749049789615,4.991,2640.7,2640.6,0.75706]
[1749049789616,6.2257,2640.7,2640.6,0.75706]
[1749049790007,1.2347,2640.7,2640.6,0.75706]
[1749049790211,4.991,2640.8,2640.7,0.75703]
[1749049790916,0.84188193,2641.0,2640.9,0.75697]
[1749049791309,0.00568193,2641.0,2640.9,0.75697]
[1749049791710,0.00568193,2641.0,2640.9,2.06927]
[1749049792516,0.00568193,2641.0,2640.9,0.75697]
[1749049793916,0.00568193,2641.0,2640.9,41.55697]
[1749049794120,0.00568193,2641.0,2640.9,2.06927]
[1749049794416,0.00568193,2641.0,2640.9,0.75697]
[1749049794613,0.76263193,2641.0,2640.8,44.76479]
[1749049794813,0.75703,2640.7,2640.6,0.821]
[1749049795218,3.62889,2640.9,2640.4,3.21348193]
[1749049795421,7.8619,2640.9,2640.4,5.10624193]
[1749049795622,1.6692,2640.9,2640.8,0.757]
[1749049796019,2.42617,2640.9,2640.5,1.2599]
[1749049796220,1.6692,2640.9,2640.8,0.757]
[1749049796721,2.42617,2640.9,2640.8,0.757]
[1749049796924,1.6692,2640.9,2640.7,0.75702]
[1749049797118,0.75703,2640.7,2640.6,0.75705]
[1749049797324,0.75702,2640.8,2640.7,0.75703]
[1749049797624,0.75704,2640.7,2640.4,3.21348193]
[1749049797826,0.75704,2640.7,2640.6,0.75706]
[1749049798030,0.75702,2640.8,2640.6,0.75706]
[1749049798324,2.02682,2640.8,2640.7,0.75703]
[1749049798623,0.75708,2640.5,2640.4,3.97058193]
[1749049798824,0.75705,2640.7,2640.5,0.75706]
[1749049799024,0.75705,2640.7,2640.6,0.75705]
[1749049799325,2.02682,2640.8,2640.7,0.75703]
[1749049799524,1.2698,2640.8,2640.7,0.75703]
[1749049799730,2.0268,2640.8,2640.7,0.75703]
[1749049800318,0.75703,2640.7,2640.6,0.75703]
[1749049800523,0.75705,2640.6,2640.4,3.97058193]
[1749049800726,0.75705,2640.6,2640.5,0.75708]
[1749049800929,0.75704,2640.7,2640.6,0.75705]
[1749049801227,0.8254,2640.9,2640.8,0.757]
[1749049801424,0.8254,2640.9,2640.6,0.75705]
[1749049801425,0.75701,2640.8,2640.6,0.75705]
[1749049801624,0.75701,2640.8,2640.5,2.0688]
[1749049801833,0.8254,2640.9,2640.5,2.0688]
[1749049802020,1.8925,2640.8,2640.4,3.21348193]
[1749049802222,4.99,2640.7,2640.4,3.97058193]
[1749049802422,1.3214,2640.6,2640.5,0.75708]
[1749049802623,0.8254,2640.9,2640.8,0.757]
[1749049802920,0.00568193,2641.0,2640.9,0.75697]
[1749049804526,0.826,2641.4,2641.3,0.75685]
[1749049804731,0.826,2641.4,2641.1,0.75691]
[1749049805029,0.75689,2641.2,2641.1,0.75691]
[1749049805223,0.75688,2641.3,2641.2,0.75687]
[1749049805427,2.78065,2641.4,2641.3,0.75685]
[1749049805623,6.60909193,2641.5,2641.4,0.75683]
[1749049806226,5.85228193,2641.5,2641.4,0.75683]
[1749049806426,0.00568193,2641.5,2641.4,0.75683]
[1749049808334,0.00568193,2641.5,2641.3,42.44493]
[1749049808537,0.00568193,2641.5,2641.4,0.75683]
[1749049809131,0.76248193,2641.5,2641.3,41.6881]
[1749049809338,0.75682,2641.4,2641.3,40.8]
[1749049809641,2.85282,2641.4,2641.3,40.8]
[1749049810437,0.75682,2641.4,2641.3,40.8]
[1749049810630,5.74582,2641.4,2641.3,40.8]
[1749049810829,6.96122,2641.4,2641.3,40.8]
[1749049812034,6.2044,2641.4,2641.3,40.8]
[1749049812237,6.2044,2641.4,2641.3,41.55685]
[1749049812436,18.19368193,2641.5,2641.4,0.75682]
[1749049812646,0.00568193,2641.5,2641.4,0.75682]
[1749049812939,0.00568193,2641.5,2641.4,41.55682]
[1749049819136,18.94548193,2641.5,2641.4,40.8]
[1749049819340,20.19208193,2641.5,2641.4,40.8]
[1749049820134,20.19208193,2641.5,2641.4,41.55682]
[1749049820335,20.19208193,2641.5,2641.4,40.8]
[1749049821546,20.19208193,2641.5,2641.4,41.55682]
[1749049821547,2.00908193,2641.5,2641.4,41.55682]
[1749049821741,20.19008193,2641.5,2641.4,40.8]
[1749049822242,19.43328193,2641.5,2641.0,3.2078]
[1749049822447,0.75688,2641.3,2641.2,0.75687]
[1749049822642,5.73488,2641.3,2641.2,0.75687]
[1749049822940,5.73488,2641.3,2641.2,40.8]
[1749049823242,5.73488,2641.3,2640.7,3.20435]
[1749049823243,0.75707,2640.6,2640.4,0.00568193]
[1749049823449,23.158,2640.8,2640.4,0.76279193]
[1749049823643,0.8924,2640.7,2640.5,40.8]
[1749049823945,4.978,2640.8,2640.7,0.75703]
[1749049824339,4.978,2641.0,2640.9,0.75697]
[1749049824536,3.21348193,2641.5,2641.4,0.75682]
[1749049824737,26.37248193,2641.5,2641.4,0.75682]
[1749049824947,26.37248193,2641.5,2640.9,3.96476]
[1749049825146,0.75692,2641.1,2641.0,0.75694]
[1749049825346,1.1941,2641.4,2640.9,3.2078]
[1749049825541,0.75691,2641.1,2641.0,40.8]
[1749049825745,0.75694,2641.0,2640.9,3.2078]
[1749049825944,2.78134,2641.0,2640.9,3.2078]
[1749049826142,7.75934,2641.0,2640.9,3.2078]
[1749049826443,2.0244,2641.0,2640.9,0.75697]
[1749049826643,24.74526,2641.0,2640.5,5.10049]
[1749049826853,24.74526,2641.0,2640.9,0.75697]
[1749049827237,24.74526,2641.0,2640.5,3.2078]
[1749049827238,0.75705,2640.6,2640.5,3.2078]
[1749049827441,0.75708,2640.5,2640.4,0.00568193]
[1749049827645,0.75731,2639.7,2639.6,4.0334]
[1749049828044,5.10073,2640.2,2639.6,4.0334]
[1749049828045,0.8303,2640.0,2639.6,4.0334]
[1749049828747,0.75725,2639.9,2639.7,0.75731]
[1749049828937,0.7573,2639.8,2639.6,4.79073]
[1749049829646,0.75727,2639.9,2639.6,4.0334]
[1749049829847,1.702,2640.0,2639.9,0.75725]
[1749049830051,1.58753,2640.0,2639.9,0.75725]
[1749049830253,0.75723,2640.0,2639.9,0.75725]
[1749049830551,0.00568193,2640.1,2640.0,0.75723]
[1749049830955,0.00568193,2640.1,2640.0,2.06783]
[1749049831246,0.00568193,2640.1,2640.0,42.86783]
[1749049831643,0.75706,2640.6,2640.2,1.89292]
[1749049831944,0.75706,2640.6,2640.5,0.75705]
[1749049832140,0.75706,2640.6,2640.3,5.3353]
[1749049832141,0.75708,2640.5,2640.3,5.3353]
[1749049832341,0.75711,2640.4,2640.3,4.0694]
[1749049832539,0.75711,2640.4,2640.3,3.2078]
[1749049834253,0.86038193,2640.6,2640.3,3.2078]
[1749049834443,0.75711,2640.5,2640.4,0.75709]
[1749049834845,0.76275193,2640.6,2640.5,0.75708]
[1749049835349,0.75711,2640.4,2640.3,3.2078]
[1749049835955,0.75711,2640.4,2640.3,3.96494]
[1749049837056,0.00568193,2640.6,2640.5,0.75708]
[1749049837256,0.76273193,2640.6,2640.5,0.75708]
[1749049837452,0.00568193,2640.6,2640.5,0.75708]
[1749049837954,0.76273193,2640.6,2640.5,0.75708]
[1749049840454,0.00568193,2640.6,2640.3,3.2078]
[1749049840662,0.75711,2640.4,2640.3,3.96492]
[1749049841055,0.75711,2640.5,2640.4,0.75708]
[1749049841560,0.75709,2640.5,2640.4,0.75708]
[1749049842057,0.75709,2640.5,2640.3,3.2078]
[1749049842058,0.00568193,2640.6,2640.5,0.75708]
[1749049842755,0.00568193,2640.6,2640.5,5.75708]
[1749049842961,1.60149,2641.2,2641.1,0.75691]
[1749049843160,1.95724,2641.4,2641.3,0.75685]
[1749049843361,1.95724,2641.4,2640.9,5.1002]
[1749049843362,0.75688,2641.3,2641.2,0.75686]
[1749049843661,0.75684,2641.4,2641.3,0.75682]
[1749049843960,0.75684,2641.4,2641.3,41.55682]
[1749049845559,1.61991,2641.5,2641.4,0.75682]
[1749049845862,0.8631,2641.5,2641.4,0.75682]
[1749049846060,0.75682,2641.4,2641.3,40.8]
[1749049846266,0.75688,2641.2,2641.1,0.00568193]
[1749049846554,27.10968,2641.2,2641.1,0.00568193]
[1749049846759,0.75707,2640.6,2640.4,0.7571]
[1749049847157,3.0919,2640.8,2640.6,0.75705]
[1749049847350,3.84891,2640.8,2640.6,0.75705]
[1749049847554,3.84891,2640.8,2640.7,0.75703]
[1749049848053,0.75703,2640.7,2640.6,0.75703]
[1749049848254,0.75705,2640.6,2640.5,40.80568193]
[1749049848453,0.75704,2640.7,2640.6,0.75705]
[1749049848657,0.75705,2640.6,2640.5,41.56274193]
[1749049848863,0.75705,2640.6,2640.5,41.56276193]
[1749049849256,3.8489,2640.8,2640.7,0.75703]
[1749049849459,2.5279,2640.8,2640.7,0.75703]
[1749049849655,0.75703,2640.7,2640.6,0.75704]
[1749049849854,0.8797,2640.8,2640.5,40.80568193]
[1749049850056,0.75705,2640.6,2640.5,41.56275193]
[1749049850254,0.75705,2640.7,2640.5,41.56275193]
[1749049850549,0.75705,2640.6,2640.5,40.80568193]
[1749049851366,0.75705,2640.6,2640.5,41.56274193]
[1749049851960,0.75705,2640.7,2640.6,0.75705]
[1749049852567,5.72793,2641.1,2641.0,0.75694]
[1749049852760,0.75695,2641.0,2640.9,0.75695]
[1749049853261,0.75693,2641.1,2641.0,0.75693]
[1749049853460,0.75695,2641.0,2640.9,0.75695]
[1749049853660,0.75695,2641.0,2640.9,0.75694]
[1749049854268,0.75693,2641.1,2641.0,0.75692]
[1749049854670,0.75695,2641.0,2640.9,0.75695]
[1749049854862,0.75693,2641.1,2641.0,0.75692]
[1749049855470,0.75695,2641.0,2640.9,0.75695]
[1749049855663,1.89238,2641.0,2640.6,3.2078]
[1749049855870,0.75703,2640.7,2640.6,3.2078]
[1749049857369,0.75703,2640.7,2640.6,3.96485]
[1749049857571,0.8752,2640.8,2640.7,0.75703]
[1749049857763,1.62981,2641.2,2640.8,1.8925]
[1749049857963,1.62981,2641.2,2641.1,0.75691]
[1749049858861,1.6298,2641.2,2640.8,0.8668]
[1749049859065,0.75691,2641.1,2641.0,0.75694]
[1749049859358,0.75691,2641.1,2640.6,8.1788]
[1749049859359,0.8729,2641.2,2640.6,3.2078]
[1749049859667,0.8729,2641.2,2640.5,42.69838193]
[1749049859668,0.75696,2641.0,2640.9,0.75696]
[1749049860758,1.2792,2641.1,2641.0,0.75694]
[1749049860963,0.75691,2641.1,2641.0,0.75694]
[1749049861165,1.6298,2641.2,2641.1,0.75691]
[1749049861874,0.8752,2641.5,2641.4,0.75683]
[1749049862066,0.00568193,2641.6,2641.5,0.7568]
[1749049862768,0.00568193,2641.6,2641.5,3.9646]
[1749049863770,1.89124,2642.6,2642.1,0.75662]
[1749049863966,5.09176977,2642.7,2642.1,0.75662]
[1749049864172,3.2078,2642.6,2642.1,42.69157]
[1749049864471,1.695,2642.7,2642.6,0.75648]
[1749049864673,4.4478,2643.1,2642.5,3.2078]
[1749049864865,4.45348193,2643.1,2643.0,0.75636]
[1749049865066,4.45348193,2643.1,2642.5,3.21348193]
[1749049865266,0.75639,2643.0,2642.5,3.21348193]
[1749049865463,0.75638,2643.0,2642.8,0.75641]
[1749049865976,0.75639,2642.9,2642.7,0.75643]
[1749049866172,4.45348193,2643.1,2642.5,3.96997193]
[1749049866372,4.45348193,2643.1,2642.6,0.75647]
[1749049866574,4.45348193,2643.1,2642.5,3.21348193]
[1749049866771,4.45348193,2643.1,2642.6,0.75646]
[1749049866772,0.7564,2642.9,2642.6,0.75646]
[1749049867369,4.45348193,2643.1,2642.5,3.96997193]
[1749049867574,0.75643,2642.8,2642.5,3.21348193]
[1749049867882,0.75641,2642.9,2642.6,0.75646]
[1749049868071,0.75642,2642.8,2642.7,0.75645]
[1749049868271,4.45348193,2643.1,2642.7,0.75645]
[1749049868472,0.75643,2642.8,2642.6,0.75646]
[1749049868674,0.75646,2642.7,2642.5,4.43068193]
[1749049868968,0.75644,2642.8,2642.6,0.75647]
[1749049869169,6.34436193,2643.1,2642.5,3.96997193]
[1749049869377,0.75647,2642.7,2642.5,3.96997193]
[1749049870178,0.75648,2642.6,2642.5,3.96997193]
[1749049870379,0.75648,2642.6,2642.5,0.00568193]
[1749049870577,0.7566,2642.2,2642.1,40.8]
[1749049871984,0.75659,2642.3,2642.1,40.8]
[1749049872177,0.7566,2642.2,2642.1,40.8]
[1749049872379,5.09918,2642.4,2641.9,0.76236193]
[1749049872592,1.2868,2642.1,2641.9,0.00568193]
[1749049872782,0.75655,2642.4,2642.2,0.75659]
[1749049872977,1.7207,2642.5,2642.0,40.8]
[1749049873183,3.2078,2642.7,2642.6,0.75648]
[1749049873878,1.6015,2642.9,2642.7,0.75643]
[1749049874283,0.8451,2642.9,2642.8,0.75642]
[1749049874585,1.6015,2642.9,2642.8,0.75642]
[1749049875287,0.8451,2642.9,2642.8,0.75642]
[1749049875891,1.60152,2642.9,2642.8,0.75642]
[1749049876187,1.60152,2642.9,2642.7,0.75643]
[1749049876388,0.75642,2642.8,2642.7,0.75643]
[1749049876789,2.0589,2642.9,2642.4,5.09913]
[1749049876984,2.81531,2642.9,2642.8,0.75642]
[1749049877193,2.81532,2642.9,2642.7,0.75643]
[1749049877393,0.75642,2642.8,2642.7,0.75643]
[1749049877594,2.05812,2642.8,2642.7,0.75643]
[1749049877797,1.3017,2642.8,2642.7,0.75643]
[1749049878403,1.3017,2642.8,2642.1,4.0442]
[1749049878704,1.89114,2642.7,2642.1,4.0442]
[1749049878892,0.75656,2642.4,2642.3,0.75657]
[1749049879401,1.60853,2642.5,2642.4,0.75654]
[1749049880301,0.852,2642.5,2642.4,0.75654]
[1749049880897,0.75663,2642.1,2642.0,40.8]
[1749049881097,0.75665,2642.0,2641.9,0.00568193]
[1749049881300,1.59965,2642.0,2641.9,0.00568193]
[1749049881794,1.89184,2641.8,2641.2,0.8171]
[1749049882096,0.75681,2641.5,2641.3,0.75683]
[1749049882407,0.75683,2641.4,2641.3,40.8]
[1749049882597,4.5283,2641.7,2641.3,40.8]
[1749049882905,0.75683,2641.4,2641.3,40.8]
[1749049883098,0.75682,2641.5,2641.3,41.55686]
[1749049883297,5.28505,2641.7,2641.3,40.8]
[1749049883494,0.75677,2641.6,2641.5,0.75679]
[1749049883694,2.07726,2641.7,2641.5,0.75679]
[1749049883902,0.75677,2641.6,2641.4,0.75681]
[1749049884103,0.7568,2641.5,2641.4,0.75681]
[1749049884304,0.7568,2641.5,2641.3,41.55684]
[1749049884495,0.7568,2641.5,2641.3,40.8]
[1749049884697,0.7568,2641.5,2641.4,0.75683]
[1749049885206,0.75679,2641.6,2641.5,0.75679]
[1749049885703,0.75677,2641.6,2641.4,0.75683]
[1749049886003,0.75682,2641.5,2641.3,40.8]
[1749049886194,2.04858,2641.6,2641.3,40.8]
[1749049886598,1.2918,2641.6,2641.3,40.8]
[1749049886902,2.04858,2641.6,2641.5,0.7568]
[1749049887397,2.04858,2641.6,2641.4,0.75681]
[1749049888101,0.7568,2641.5,2641.4,0.75681]
[1749049888601,0.75683,2641.4,2641.3,40.8]
[1749049888805,0.75686,2641.3,2641.2,0.00568193]
[1749049889902,2.89396,2641.3,2641.2,0.00568193]
[1749049890400,27.17925,2641.3,2640.5,40.8]
[1749049890604,0.75699,2640.9,2640.7,0.75701]
[1749049890802,0.757,2640.8,2640.6,0.75704]
[1749049891105,0.75701,2640.8,2640.5,40.8]
[1749049891297,3.2078,2641.1,2640.5,40.8]
[1749049891497,3.2078,2641.1,2640.8,0.75699]